fUSD/lending_fUSD_20260225
["ID","MTS","AMOUNT","RATE_DAILY","PERIOD"]
[406637665,1772003441681,-700.0,0.000103,2]
[406637666,1772003441691,-700.0,0.000103,2]
[406637667,1772003441700,-700.0,0.000103,2]
[406637668,1772003441709,-700.0,0.000103,2]
[406637669,1772003441718,-700.0,0.000103,2]
[406637670,1772003441727,-700.0,0.000103,2]
[406637671,1772003441737,-700.0,0.000103,2]
[406637672,1772003441746,-753.13710309,0.000103,2]
[406637673,1772003441757,-164.38,0.00010312,2]
[406637674,1772003441766,-500.0,0.00010329,2]
[406637675,1772003441777,-3819.85820589,0.00010334,2]
[406637676,1772003441787,-166.13,0.00010338,2]
[406637677,1772003441797,-587.0,0.00010345,2]
[406637678,1772003441807,-1120.0,0.00010345,2]
[406637679,1772003441816,-777.0,0.00010355,2]
[406637680,1772003441826,-500.0,0.00010384,2]
[406637681,1772003441835,-777.0,0.0001041,2]
[406637682,1772003441844,-500.0,0.00010438,2]
[406637683,1772003441854,-777.0,0.00010464,2]
[406637684,1772003441863,-166.66,0.0001047,2]
[406637685,1772003441873,-500.0,0.00010493,2]
[406637686,1772003441882,-777.0,0.00010519,2]
[406637687,1772003441891,-162.72,0.00010537,2]
[406637688,1772003441901,-391.0,0.00010548,2]
[406637689,1772003441910,-500.0,0.00010573,2]
[406637690,1772003441920,-777.0,0.00010574,2]
[406637691,1772003441929,-777.0,0.00010629,2]
[406637692,1772003441938,-777.0,0.00010684,2]
[406637693,1772003441948,-777.0,0.00010738,2]
[406637694,1772003441957,-777.0,0.00010793,2]
[406637695,1772003441967,-340.82738431,0.00010804,2]
[406637696,1772003441976,-425.09831696,0.00010829,2]
[406637697,1772003441986,-777.0,0.00010848,2]
[406637698,1772003441995,-231.60434279,0.000109,2]
[406637699,1772003442006,-231.60434272,0.000109,2]
[406637700,1772003442015,-777.0,0.00010903,2]
[406637701,1772003442025,-777.0,0.00010958,2]
[406637702,1772003442036,-150.0,0.00010959,2]
[406637703,1772003442045,-777.0,0.00011012,2]
[406637704,1772003442056,-777.0,0.00011067,2]
[406637705,1772003442066,-234.33725537,0.00011099,2]
[406637706,1772003442078,-234.33725533,0.00011099,2]
[406637707,1772003442090,-234.33725533,0.00011099,2]
[406637708,1772003442100,-661.34769921,0.00011099,2]
[406637709,1772003442110,-661.34769913,0.00011099,2]
[406637710,1772003442119,-661.34769913,0.00011099,2]
[406637711,1772003442128,-1000.0,0.00011121,2]
[406637712,1772003442138,-777.0,0.00011122,2]
[406637713,1772003442148,-250.0,0.00011139,2]
[406637714,1772003442157,-777.0,0.00011177,2]
[406637715,1772003442175,-777.0,0.00011231,2]
[406637716,1772003442187,-4590.12,0.00011233,2]
[406637717,1772003442196,-155.48,0.00011233,2]
[406637718,1772003442206,-32879.9337,0.00011256,2]
[406637719,1772003442215,-1000.0,0.00011256,2]
[406637720,1772003442225,-797.0,0.00011286,2]
[406637721,1772003442234,-231.60434272,0.00011317,2]
[406637722,1772003442244,-823.0,0.00011379,2]
[406637723,1772003442253,-14439.79,0.00011555,2]
[406637724,1772003442262,-4264.13,0.00011589,2]
[406637725,1772003442272,-1000.0,0.00011668,2]
[406637726,1772003442282,-661.34769913,0.00011756,2]
[406637727,1772003442291,-234.33725533,0.00011763,2]
[406637728,1772003442301,-260.72381013,0.0001189,2]
[406637729,1772003442310,-150.0,0.0001189,2]
[406637730,1772003442319,-154.03407585,0.0001189,2]
[406637731,1772003442329,-150.0,0.00011945,2]
[406637732,1772003442339,-1152.0,0.00012517,2]
[406637733,1772003442349,-300.0,0.00012555,4]
[406637734,1772003442358,-231.60434272,0.00012634,2]
[406637735,1772003442368,-162.72,0.00012645,2]
[406637736,1772003442378,-661.34769913,0.0001278,2]
[406637737,1772003442387,-234.33725533,0.00012786,2]
[406637738,1772003442397,-504.04222443,0.0001289,2]
[406637739,1772003442406,-500.0,0.0001289,2]
[406637740,1772003442416,-500.0,0.0001289,2]
[406637741,1772003442425,-500.0,0.0001289,2]
[406637742,1772003442435,-500.0,0.0001289,2]
[406637743,1772003442444,-500.0,0.0001289,2]
[406637744,1772003442453,-500.0,0.0001289,2]
[406637745,1772003442463,-500.0,0.0001289,2]
[406637746,1772003442472,-500.0,0.0001289,2]
[406637747,1772003442482,-500.0,0.0001289,2]
[406637748,1772003442493,-500.0,0.0001289,2]
[406637749,1772003442503,-500.0,0.0001289,2]
[406637750,1772003442513,-500.0,0.0001289,2]
[406637751,1772003442522,-500.0,0.0001289,2]
[406637752,1772003442532,-500.0,0.0001289,2]
[406637753,1772003442542,-700.0,0.0001289,2]
[406637754,1772003442552,-500.0,0.0001289,2]
[406637755,1772003442562,-700.0,0.0001289,2]
[406637756,1772003442572,-700.0,0.0001289,2]
[406637757,1772003442587,-700.0,0.0001289,2]
[406637758,1772003442597,-700.0,0.0001289,2]
[406637759,1772003442606,-700.0,0.0001289,2]
[406637760,1772003442615,-700.0,0.0001289,2]
[406637761,1772003442625,-700.0,0.0001289,2]
[406637762,1772003442635,-700.0,0.0001289,2]
[406637763,1772003442645,-700.0,0.0001289,2]
[406637764,1772003442658,-700.0,0.0001289,2]
[406637765,1772003442845,-700.0,0.0001289,2]
[406637766,1772003442855,-700.0,0.0001289,2]
[406637767,1772003442864,-700.0,0.0001289,2]
[406637768,1772003442874,-156.02756201,0.00013297,2]
[406637769,1772003442883,-500.0,0.00013698,2]
[406637770,1772003442893,-500.0,0.00013698,2]
[406637771,1772003442902,-280.43,0.00013698,2]
[406637772,1772003442912,-337.64006929,0.00013698,2]
[406637773,1772003442921,-883.0,0.00013769,2]
[406637774,1772003442930,-160.0,0.00013777,2]
[406637775,1772003442940,-173.91437885,0.00013777,2]
[406637776,1772003442949,-661.34769913,0.00013804,2]
[406637777,1772003442958,-234.33725533,0.00013808,2]
[406637778,1772003442968,-231.60434272,0.0001395,2]
[406637779,1772003442976,-1544.4,0.00014504,2]
[406637780,1772003442986,-661.34769913,0.00014828,2]
[406637781,1772003442996,-234.33725533,0.00014831,2]
[406637782,1772003443006,-250.0,0.00015,2]
[406637783,1772003443016,-504.0,0.00015101,2]
[406637784,1772003443027,-231.60434272,0.00015267,2]
[406637785,1772003443036,-187.07,0.00015638,2]
[406637786,1772003443046,-661.34769913,0.00015852,2]
[406637787,1772003443055,-234.33725533,0.00015854,2]
[406637788,1772003443065,-300.0,0.00016157,5]
[406637789,1772003443074,-1055.0,0.00016438,2]
[406637790,1772003443083,-160.67,0.00016525,2]
[406637791,1772003443094,-231.60434272,0.00016583,2]
[406637792,1772003443105,-661.34769913,0.00016876,2]
[406637793,1772003443114,-234.33725533,0.00016877,2]
[406637795,1772003443124,-300.0,0.00017,2]
[406637796,1772003443134,-318.044735,0.00017011,7]
[406637798,1772003443144,-50103.402458,0.000171,2]
[406637799,1772003443153,-701.55589878,0.00017115,2]
[406637801,1772003443163,-486.46,0.00017215,2]
[406637802,1772003443172,-187.75489265,0.00017405,2]
[406637803,1772003443182,-2956.92510101,0.00017407,2]
[406637804,1772003443192,-504.0,0.00017505,4]
[406637805,1772003443203,-701.55589876,0.00017508,3]
[406637806,1772003443213,-1326.95458225,0.0001764,2]
[406637807,1772003443223,-187.75489264,0.00017653,2]
[406637808,1772003443234,-2956.925101,0.00017654,2]
[406637809,1772003443244,-918.22290501,0.00017708,2]
[406637810,1772003443254,-918.22290499,0.00017804,2]
[406637811,1772003443263,-800.0,0.00017808,2]
[406637812,1772003443275,-1069.12335,0.0001782,2]
[406637813,1772003443284,-1069.12334,0.0001782,2]
[406637815,1772003443294,-150.0,0.000179,2]
[406637817,1772003443303,-200.0,0.000179,2]
[406637819,1772003443313,-150.0,0.000179,2]
[406637821,1772003443322,-150.0,0.000179,2]
[406637823,1772003443331,-150.0,0.000179,2]
[406637825,1772003443341,-150.0,0.000179,2]
[406637827,1772003443350,-150.0,0.000179,2]
[406637829,1772003443359,-150.0,0.000179,2]
[406637831,1772003443369,-150.0,0.000179,2]
[406637833,1772003443378,-150.0,0.000179,2]
[406637835,1772003443387,-10000.0,0.000179,2]
[406637836,1772003443396,-150.0,0.000179,2]
[406637838,1772003443405,-618.0,0.000179,2]
[406637839,1772003443414,-3497.0,0.000179,2]
[406637841,1772003443423,-1340.0,0.000179,2]
[406637842,1772003443432,-1040.0,0.000179,2]
[406637843,1772003443441,-1277.0,0.000179,2]
[406637844,1772003443451,-150.0,0.000179,2]
[406637845,1772003443461,-150.0,0.000179,2]
[406637846,1772003443472,-150.0,0.000179,2]
[406637847,1772003443481,-920.0,0.000179,2]
[406637848,1772003443490,-150.0,0.000179,2]
[406637849,1772003443500,-1210.0,0.000179,2]
[406637850,1772003443509,-156.02756201,0.000179,2]
[406637851,1772003443518,-234.33725533,0.000179,2]
[406637852,1772003443530,-150.0,0.000179,2]
[406637853,1772003443539,-701.55589876,0.000179,3]
[406637854,1772003443548,-231.60434272,0.000179,2]
[406637855,1772003443558,-661.34769913,0.000179,2]
[406637856,1772003443567,-918.22290499,0.000179,2]
[406637857,1772003443576,-2956.925101,0.000179,2]
[406637858,1772003443587,-187.75489264,0.000179,2]
[406637859,1772003443597,-2456.0,0.000179,2]
[406637860,1772003443607,-150.6335543,0.000179,2]
[406637861,1772003443616,-413.0,0.000179,2]
[406637862,1772003443626,-5405.0,0.000179,2]
[406637863,1772003443637,-6691.0,0.000179,2]
[406637864,1772003443647,-200.0,0.00017937,2]
[406637865,1772003443657,-227.23819075,0.00017982,2]
[406637866,1772003443672,-296.74949591,0.0001799,2]
[406637867,1772003443682,-296.74949591,0.0001799,2]
[406637868,1772003443692,-317282.9468716,0.00017997,2]
[406637869,1772003443701,-1002.2649398,0.00017997,2]
[406637870,1772003443712,-340.17757751,0.00017997,2]
[406637871,1772003443722,-12726.536893,0.00017997,2]
[406637872,1772003443732,-300.0,0.00017999,2]
[406637873,1772003443741,-300.0,0.00017999,2]
[406637874,1772003443751,-160.16969127,0.00017999,2]
[406637875,1772003443760,-300.0,0.00017999,2]
[406637876,1772003443770,-666.0,0.00017999,2]
[406637877,1772003443781,-300.0,0.00017999,2]
[406637878,1772003443791,-666.0,0.00017999,2]
[406637879,1772003443800,-221.28547606,0.00018,2]
[406637880,1772003443814,-244216.57274462,0.00018,2]
[406637881,1772003443866,-615.21037343,0.00018,2]
[406637882,1772003443958,-966.3271354,0.00018,2]
[406637883,1772003443988,-743792.44325515,0.00018,2]
[406637886,1772003446623,-1111.11790671,0.00018,2]
[406637888,1772004195040,161.53,5.171e-05,2]
[406637889,1772004195243,161.53,5.352e-05,2]
[406637890,1772004195443,161.53,5.534e-05,2]
[406637891,1772004195640,161.53,5.715e-05,2]
[406637892,1772004195834,161.53,5.897e-05,2]
[406637893,1772004196019,161.53,6.078e-05,2]
[406637894,1772004196223,161.53,6.26e-05,2]
[406637895,1772004196419,161.53,6.441e-05,2]
[406637896,1772004196608,161.53,6.623e-05,2]
[406637897,1772004196810,161.53,6.804e-05,2]
[406637898,1772004197014,161.53,6.986e-05,2]
[406637899,1772004197234,161.53,7.167e-05,2]
[406637900,1772004197438,161.53,7.348e-05,2]
[406637901,1772004197661,161.53,7.53e-05,2]
[406637902,1772004197894,161.53,7.711e-05,2]
[406637903,1772004198086,161.53,7.893e-05,2]
[406637904,1772004505702,500.0,8.036e-05,2]
[406637913,1772004571638,-161.53,8.074e-05,2]
[406637914,1772004571657,-250.0,8.12e-05,2]
[406637915,1772004571676,-315.20669997,8.165e-05,2]
[406637916,1772004571696,-1846.57,8.219e-05,2]
[406637917,1772004571716,-161.53,8.256e-05,2]
[406637918,1772004571736,-1767.433,8.336e-05,2]
[406637919,1772004571756,-173.036,8.336e-05,2]
[406637920,1772004571776,-222.98032862,8.336e-05,2]
[406637921,1772004571797,-300.0,8.369e-05,2]
[406637922,1772004571820,-4801.71397141,8.37e-05,2]
[406637923,1772004572823,-10000.0,8.37e-05,2]
[406637924,1772004573233,-10000.0,8.37e-05,2]
[406637925,1772004573674,-10000.0,8.37e-05,2]
[406637926,1772004574080,-10000.0,8.37e-05,2]
[406637929,1772004574610,-10000.0,8.37e-05,2]
[406637930,1772004574937,-10000.0,8.37e-05,2]
[406637931,1772004575370,-10000.0,8.37e-05,2]
[406637932,1772004575726,-10000.0,8.37e-05,2]
[406637933,1772004576141,-10000.0,8.37e-05,2]
[406637934,1772004576488,-10000.0,8.37e-05,2]
[406637935,1772004576902,-10000.0,8.37e-05,2]
[406637936,1772004577252,-10000.0,8.37e-05,2]
[406637937,1772004577718,-10000.0,8.37e-05,2]
[406637938,1772004578067,-10000.0,8.37e-05,2]
[406637939,1772004578616,-10000.0,8.37e-05,2]
[406637940,1772004579084,-10000.0,8.37e-05,2]
[406637941,1772004579611,-10000.0,8.37e-05,2]
[406637943,1772004580030,-10000.0,8.37e-05,2]
[406637944,1772004580434,-10000.0,8.37e-05,2]
[406637945,1772004580894,-10000.0,8.37e-05,2]
[406637946,1772004581449,-10000.0,8.37e-05,2]
[406637947,1772004581825,-10000.0,8.37e-05,2]
[406637948,1772004582265,-10000.0,8.37e-05,2]
[406637949,1772004582756,-10000.0,8.37e-05,2]
[406637950,1772004583196,-10000.0,8.37e-05,2]
[406637951,1772004583669,-10000.0,8.37e-05,2]
[406637952,1772004584144,-10000.0,8.37e-05,2]
[406637953,1772004584559,-10000.0,8.37e-05,2]
[406637954,1772004585014,-10000.0,8.37e-05,2]
[406637955,1772004585473,-10000.0,8.37e-05,2]
[406637956,1772004585956,-10000.0,8.37e-05,2]
[406637957,1772004586455,-10000.0,8.37e-05,2]
[406637958,1772004586929,-10000.0,8.37e-05,2]
[406637960,1772004587740,-10000.0,8.37e-05,2]
[406637961,1772004588492,-10000.0,8.37e-05,2]
[406637962,1772004589283,-10000.0,8.37e-05,2]
[406637963,1772004607449,-300.0,8.369e-05,2]
[406637964,1772004607472,-1200.0,8.369e-05,2]
[406637965,1772004607492,-300.0,8.369e-05,2]
[406637966,1772004607511,-150.0,8.369e-05,2]
[406637967,1772004607530,-220.0,8.369e-05,2]
[406637968,1772004607554,-3759.0,8.37e-05,2]
[406637978,1772004631467,-425.09831696,8.37e-05,2]
[406637979,1772004631478,-174.99635304,8.37e-05,2]
[406637980,1772004631660,-497.55228091,8.37e-05,2]
[406637981,1772004631681,-584.79955105,8.37e-05,2]
[406637982,1772004631695,-412.77728069,8.37e-05,2]
[406637983,1772004631731,-575.5876787,8.37e-05,2]
[406637984,1772004631746,-710.0,8.37e-05,2]
[406637985,1772004631757,-7836.54144071,8.37e-05,2]
[406637986,1772004631769,-387.105,8.37e-05,2]
[406637987,1772004631781,-49460.37166831,8.37e-05,2]
[406637988,1772004631792,-4169.00275162,8.37e-05,2]
[406637989,1772004631807,-19302.36746762,8.37e-05,2]
[406637990,1772004631818,-27724.19782573,8.37e-05,2]
[406637991,1772004631829,-405.23147994,8.37e-05,2]
[406637993,1772004637483,-137057.91645064,8.37e-05,2]
[406638000,1772004637575,-1343.44849106,8.37e-05,2]
[406638001,1772004637592,-304.74764,8.37e-05,2]
[406638003,1772004639779,-1111218.76700294,8.37e-05,2]
[406638004,1772004639814,-326.58468,8.37e-05,2]
[406638036,1772004642609,-128682.26319032,8.37e-05,2]
[406638043,1772004642770,-13199.50218603,8.37e-05,2]
[406638044,1772004642783,-16264.84081277,8.37e-05,2]
[406638049,1772004645394,-300.0,8.37e-05,2]
[406638059,1772004731250,14608.46335209,0.00013172,7]
[406638060,1772004753673,1162.35506538,0.00011,7]
[406638065,1772004939121,-1200.0,8.269e-05,2]
[406638067,1772004962348,300.0,8.269e-05,2]
[406638068,1772004962429,150.0,8.269e-05,2]
[406638069,1772004982021,1867.76687207,8.1e-05,2]
[406638070,1772004982047,722.8955016,8.1e-05,2]
[406638073,1772005031119,4264.13,7.86e-05,2]
[406638074,1772005061902,-1510.24909384,8.1e-05,2]
[406638075,1772005061925,-300.0,8.268e-05,2]
[406638076,1772005061951,-500.0,8.269e-05,2]
[406638077,1772005061980,-500.0,8.269e-05,2]
[406638078,1772005062007,-500.0,8.269e-05,2]
[406638079,1772005062032,-170.09606195,8.269e-05,2]
[406638080,1772005062056,-500.0,8.269e-05,2]
[406638081,1772005062083,-500.0,8.269e-05,2]
[406638082,1772005062107,-500.0,8.269e-05,2]
[406638083,1772005062129,-8719.65484421,8.27e-05,2]
[406638085,1772005091889,-318.044735,0.00016365,7]
[406638086,1772005091912,-182.16364988,0.00017061,7]
[406638087,1772005091934,-159.92348232,0.00017061,7]
[406638088,1772005091967,-375.34268514,0.00019178,7]
[406638089,1772005091991,-5000.0,0.0002,7]
[406638090,1772005092019,-256.0,0.00021301,7]
[406638091,1772005092041,-504.0,0.00021815,8]
[406638092,1772005092063,-300.0,0.00022057,7]
[406638093,1772005092091,-224.0,0.00022822,14]
[406638094,1772005092112,-153.0,0.00023,7]
[406638095,1772005092140,-433.07004878,0.00023049,9]
[406638096,1772005092165,-504.0,0.00024053,10]
[406638097,1772005092185,-154.0,0.00024164,7]
[406638098,1772005092206,-5136.45539888,0.0002429,7]
[406638102,1772005209854,300.0,8.271e-05,3]
[406638103,1772005216055,10000.0,0.0001,10]
[406638105,1772005251663,8022.0,0.0001,10]
[406638107,1772005301046,5735.88,7.864e-05,2]
[406638108,1772005301067,8703.91,7.864e-05,2]
[406638111,1772005379928,210.17,7.795e-05,2]
[406638113,1772005400748,1262.58,8.057e-05,2]
[406638114,1772005407972,158.47,6.216e-05,2]
[406638117,1772005490346,8368.79,7.767e-05,2]
[406638118,1772005490368,10000.01,7.767e-05,2]
[406638124,1772005616482,-300.0,7.766e-05,2]
[406638125,1772005616512,-1200.0,7.766e-05,2]
[406638126,1772005616542,-300.0,7.766e-05,2]
[406638127,1772005616571,-300.0,7.766e-05,2]
[406638128,1772005618981,-740.17045631,7.767e-05,2]
[406638129,1772005619063,-10000.01,7.767e-05,2]
[406638130,1772005625497,-10000.01,7.767e-05,2]
[406638131,1772005625791,-10000.01,7.767e-05,2]
[406638132,1772005628015,-2320.46045631,7.767e-05,2]
[406638133,1772005628040,-5359.08908738,7.767e-05,2]
[406638142,1772005831748,-227.25,8.1e-05,2]
[406638143,1772005831758,-218.0,8.1e-05,2]
[406638144,1772005831767,-77.18722123,8.105e-05,2]
[406638145,1772005831779,-91.26877877,8.105e-05,2]
[406638146,1772005831789,-1785.06,8.105e-05,2]
[406638147,1772005831798,-300.0,8.136e-05,2]
[406638148,1772005831808,-121.39623544,8.136e-05,2]
[406638149,1772005831820,-1078.60376456,8.136e-05,2]
[406638150,1772005831830,-300.0,8.136e-05,2]
[406638151,1772005831839,-1200.0,8.136e-05,2]
[406638152,1772005831848,-2969.0,8.137e-05,2]
[406638153,1772005831858,-1570.0,8.137e-05,2]
[406638154,1772005831867,-311.0,8.137e-05,2]
[406638155,1772005831877,-150.0,8.169e-05,2]
[406638156,1772005831886,-352.23289577,8.169e-05,2]
[406638157,1772005831895,-902624.74091588,8.17e-05,2]
[406638158,1772005831910,-8256.08396959,8.17e-05,2]
[406638159,1772005831921,-3360.5,8.17e-05,2]
[406638181,1772005837648,-434.74656,8.17e-05,2]
[406638182,1772005837776,-260.063,8.17e-05,2]
[406638346,1772005839983,-465.62449916,8.17e-05,2]
[406638361,1772005843060,-279083.20402665,8.17e-05,2]
[406638362,1772005843073,-55539.54789409,8.17e-05,2]
[406638365,1772005845909,-2934.99287934,8.17e-05,2]
[406638369,1772006125308,1600.0,7.8e-05,2]
[406638370,1772006131634,6600.0,9e-05,3]
[406638371,1772006224200,-3300.0,7.9e-05,2]
[406638372,1772006224229,-300.0,7.969e-05,2]
[406638373,1772006224322,-1200.01,7.97e-05,2]
[406638374,1772006227184,-4417.1446,7.97e-05,2]
[406638375,1772006227208,-1165.7208,7.97e-05,2]
[406638376,1772006234173,-4900.0,8e-05,2]
[406638377,1772006234212,-200.01,8.006e-05,2]
[406638378,1772006237103,-999.99,8.006e-05,2]
[406638379,1772006237131,-168.457,8.007e-05,2]
[406638380,1772006237161,-1428.048,8.007e-05,2]
[406638381,1772006284541,166.66,7.695e-05,2]
[406638382,1772006289389,1600.0,7.464e-05,2]
[406638383,1772006297639,2124.91,6.6e-05,2]
[406638384,1772006326438,300.0,8.07e-05,3]
[406638385,1772006393338,1500.0,7.47e-05,2]
[406638386,1772006495810,151.105,7.811e-05,2]
[406638387,1772006495846,1533.252,7.811e-05,2]
[406638388,1772006608218,2924.083,7.419e-05,2]
[406638389,1772006608241,10000.01,7.419e-05,2]
[406638390,1772006608263,1741.147,7.419e-05,2]
[406638391,1772006721277,3393.93,7.378e-05,2]
[406638393,1772006840036,1066.15,7.375e-05,2]
[406638394,1772006843346,800.0,7.8e-05,2]
[406638398,1772006849468,3300.0,0.0001,3]
[406638405,1772006973883,222.58,7.8e-05,2]
[406638407,1772007031769,-216.0,7.866e-05,2]
[406638408,1772007031780,-151.0,7.866e-05,2]
[406638409,1772007031790,-150.0,7.867e-05,2]
[406638410,1772007031799,-1200.0,7.867e-05,2]
[406638411,1772007031808,-253.57623194,7.868e-05,2]
[406638412,1772007031820,-332.9363957,7.868e-05,2]
[406638413,1772007031829,-500.0,7.868e-05,2]
[406638414,1772007031838,-500.0,7.868e-05,2]
[406638415,1772007031847,-500.0,7.868e-05,2]
[406638416,1772007031856,-225.34133153,7.868e-05,2]
[406638417,1772007031866,-500.0,7.868e-05,2]
[406638418,1772007031875,-500.0,7.868e-05,2]
[406638419,1772007031885,-500.0,7.868e-05,2]
[406638420,1772007031894,-500.0,7.868e-05,2]
[406638421,1772007031903,-500.0,7.868e-05,2]
[406638422,1772007031912,-369.35862596,7.868e-05,2]
[406638423,1772007031922,-500.0,7.868e-05,2]
[406638424,1772007031931,-500.0,7.868e-05,2]
[406638425,1772007031940,-500.0,7.868e-05,2]
[406638426,1772007031950,-500.0,7.868e-05,2]
[406638427,1772007031959,-500.0,7.868e-05,2]
[406638428,1772007031968,-500.0,7.868e-05,2]
[406638429,1772007031978,-500.0,7.868e-05,2]
[406638430,1772007031987,-500.0,7.868e-05,2]
[406638431,1772007031996,-500.0,7.868e-05,2]
[406638432,1772007032006,-500.0,7.868e-05,2]
[406638433,1772007032015,-500.0,7.868e-05,2]
[406638434,1772007032024,-500.0,7.868e-05,2]
[406638435,1772007032033,-500.0,7.868e-05,2]
[406638436,1772007032043,-500.0,7.868e-05,2]
[406638437,1772007032052,-500.0,7.868e-05,2]
[406638438,1772007032061,-500.0,7.868e-05,2]
[406638439,1772007032070,-500.0,7.868e-05,2]
[406638440,1772007032079,-500.0,7.868e-05,2]
[406638441,1772007032089,-375.58069318,7.868e-05,2]
[406638442,1772007032098,-500.0,7.868e-05,2]
[406638443,1772007032107,-500.0,7.868e-05,2]
[406638444,1772007032117,-500.0,7.868e-05,2]
[406638445,1772007032126,-500.0,7.868e-05,2]
[406638446,1772007032136,-500.0,7.868e-05,2]
[406638447,1772007032145,-500.0,7.868e-05,2]
[406638448,1772007032154,-500.0,7.868e-05,2]
[406638449,1772007032163,-500.0,7.868e-05,2]
[406638450,1772007032172,-500.0,7.868e-05,2]
[406638451,1772007032181,-500.0,7.868e-05,2]
[406638452,1772007032190,-500.0,7.868e-05,2]
[406638453,1772007032198,-500.0,7.868e-05,2]
[406638454,1772007032207,-500.0,7.868e-05,2]
[406638455,1772007032216,-500.0,7.868e-05,2]
[406638456,1772007032225,-500.0,7.868e-05,2]
[406638457,1772007032234,-500.0,7.868e-05,2]
[406638458,1772007032243,-500.0,7.868e-05,2]
[406638459,1772007032252,-500.0,7.868e-05,2]
[406638460,1772007032261,-500.0,7.868e-05,2]
[406638461,1772007032270,-500.0,7.868e-05,2]
[406638462,1772007032279,-500.0,7.868e-05,2]
[406638463,1772007032288,-500.0,7.868e-05,2]
[406638464,1772007032296,-500.0,7.868e-05,2]
[406638465,1772007032305,-500.0,7.868e-05,2]
[406638466,1772007032315,-500.0,7.868e-05,2]
[406638467,1772007032324,-500.0,7.868e-05,2]
[406638468,1772007032334,-391.73118813,7.868e-05,2]
[406638469,1772007032343,-500.0,7.868e-05,2]
[406638470,1772007032353,-500.0,7.868e-05,2]
[406638471,1772007032362,-500.0,7.868e-05,2]
[406638472,1772007032371,-500.0,7.868e-05,2]
[406638473,1772007032381,-500.0,7.868e-05,2]
[406638474,1772007032390,-500.0,7.868e-05,2]
[406638475,1772007032399,-500.0,7.868e-05,2]
[406638476,1772007032408,-500.0,7.868e-05,2]
[406638477,1772007032417,-500.0,7.868e-05,2]
[406638478,1772007032426,-500.0,7.868e-05,2]
[406638479,1772007032435,-500.0,7.868e-05,2]
[406638480,1772007032444,-500.0,7.868e-05,2]
[406638481,1772007032453,-500.0,7.868e-05,2]
[406638482,1772007032463,-500.0,7.868e-05,2]
[406638483,1772007032473,-500.0,7.868e-05,2]
[406638484,1772007032482,-500.0,7.868e-05,2]
[406638485,1772007032492,-339.17311881,7.868e-05,2]
[406638486,1772007032501,-99594.67741475,7.869e-05,2]
[406638487,1772007032514,-1301.05904,7.869e-05,2]
[406638489,1772007032525,-543007.68224007,7.869e-05,2]
[406638491,1772007032536,-51152.842205,7.869e-05,2]
[406638494,1772007032551,-17925.05455111,7.869e-05,2]
[406638519,1772007038600,-1287018.68454907,7.869e-05,2]
[406638520,1772007038610,-1600.0,7.9e-05,2]
[406638521,1772007038619,-166.66,7.949e-05,2]
[406638522,1772007038629,-3569.21008894,7.959e-05,2]
[406638523,1772007038642,-2500.0,8e-05,2]
[406638524,1772007038651,-1000.0,8.035e-05,2]
[406638525,1772007038661,-227.23819075,8.162e-05,2]
[406638526,1772007038670,-1000.0,8.169e-05,2]
[406638527,1772007038680,-1459.0,8.173e-05,2]
[406638528,1772007038690,-5811.950338,8.178e-05,2]
[406638529,1772007038702,-166.66,8.203e-05,2]
[406638530,1772007038712,-656.0,8.206e-05,2]
[406638531,1772007038722,-1802.0,8.212e-05,2]
[406638532,1772007038732,-500.0,8.219e-05,2]
[406638533,1772007038742,-500.0,8.219e-05,2]
[406638535,1772007038753,-1017.0,8.219e-05,2]
[406638537,1772007038762,-150.0,8.219e-05,2]